fUST/lending_fUST_20260103
["ID","MTS","AMOUNT","RATE_DAILY","PERIOD"]
[400360524,1767435042773,-151.0,0.0002,2]
[400360525,1767435042783,-151.51515152,0.0002,2]
[400360526,1767435042793,-1000.0,0.0002,5]
[400360527,1767435042803,-972.294013,0.0002,2]
[400360528,1767435042813,-972.294013,0.0002,2]
[400360529,1767435042823,-972.294013,0.0002,2]
[400360530,1767435042833,-972.294021,0.0002,2]
[400360531,1767435042842,-1000.0,0.0002,2]
[400360532,1767435042852,-250.0,0.0002,10]
[400360533,1767435042862,-300.0,0.0002,2]
[400360534,1767435042871,-850.3,0.0002,2]
[400360535,1767435042881,-151.0,0.0002,2]
[400360536,1767435042891,-151.0,0.0002,2]
[400360537,1767435042901,-235.000033,0.0002,2]
[400360538,1767435042910,-1104.030292,0.0002,2]
[400360539,1767435042920,-1104.030292,0.0002,2]
[400360540,1767435042930,-1104.030292,0.0002,2]
[400360541,1767435042939,-1104.030292,0.0002,2]
[400360542,1767435042948,-2000.0,0.0002,7]
[400360543,1767435042959,-454.59091364,0.00020034,4]
[400360544,1767435042969,-454.59091364,0.00020034,4]
[400360546,1767435042979,-253.628271,0.000201,10]
[400360548,1767435042988,-208.26,0.000201,2]
[400360550,1767435042997,-421.09067682,0.0002013,2]
[400360552,1767435043007,-1167.579961,0.00020187,2]
[400360553,1767435043017,-44933.71,0.000202,2]
[400360554,1767435043026,-198.0,0.00020219,3]
[400360556,1767435043036,-454.59091364,0.00020223,4]
[400360558,1767435043046,-454.59091364,0.00020223,4]
[400360559,1767435043056,-864.0,0.00020287,2]
[400360560,1767435043065,-250.16,0.000204,2]
[400360561,1767435043075,-208.26,0.000204,2]
[400360562,1767435043085,-454.59091364,0.00020412,4]
[400360563,1767435043094,-454.59091364,0.00020412,4]
[400360564,1767435043104,-152.42,0.00020426,2]
[400360565,1767435043114,-282.15,0.000205,2]
[400360566,1767435043123,-3016.84,0.000205,2]
[400360567,1767435043133,-2000.0,0.000205,7]
[400360568,1767435043143,-330.734172,0.00020548,2]
[400360569,1767435043153,-500.0,0.00020548,7]
[400360570,1767435043162,-454.59091364,0.00020601,4]
[400360571,1767435043173,-454.59091364,0.00020601,4]
[400360572,1767435043183,-1387.29851785,0.0002061,2]
[400360573,1767435043193,-208.26,0.000207,2]
[400360574,1767435043203,-256.05139749,0.000209,2]
[400360575,1767435043213,-35714.28,0.000209,3]
[400360576,1767435043223,-16891.83577304,0.00020932,2]
[400360577,1767435043233,-475.94298733,0.00020989,2]
[400360578,1767435043243,-276.92757595,0.00021,2]
[400360579,1767435043252,-2514.0,0.00021,2]
[400360580,1767435043261,-10000.0,0.00021,5]
[400360581,1767435043271,-50000.0,0.00021,2]
[400360582,1767435043281,-501.86,0.00021,7]
[400360583,1767435043291,-614.0759547,0.00021,30]
[400360584,1767435043301,-3000.0,0.00021,2]
[400360585,1767435043311,-2000.0,0.00021,7]
[400360586,1767435043321,-208.26,0.00021,2]
[400360587,1767435043331,-902.11137526,0.0002101,2]
[400360588,1767435043341,-3000.0,0.0002101,2]
[400360589,1767435043351,-3000.0,0.0002102,2]
[400360590,1767435043453,-176.90419123,0.0002103,30]
[400360591,1767435043463,-3000.0,0.0002103,2]
[400360592,1767435043473,-3000.0,0.0002104,2]
[400360593,1767435043483,-176.90419123,0.00021049,30]
[400360594,1767435043493,-3000.0,0.0002105,2]
[400360595,1767435043502,-3000.0,0.0002106,2]
[400360596,1767435043512,-176.90419123,0.00021069,30]
[400360597,1767435043522,-3000.0,0.0002107,2]
[400360598,1767435043532,-3000.0,0.0002108,2]
[400360599,1767435043542,-176.90419123,0.00021089,30]
[400360600,1767435043551,-3000.0,0.0002109,2]
[400360601,1767435043561,-3000.0,0.000211,2]
[400360602,1767435043571,-176.90419123,0.00021108,30]
[400360603,1767435043581,-3000.0,0.0002111,2]
[400360604,1767435043590,-3000.0,0.0002112,2]
[400360605,1767435043600,-176.90419123,0.00021128,30]
[400360606,1767435043610,-3000.0,0.0002113,2]
[400360607,1767435043620,-3000.0,0.0002114,2]
[400360608,1767435043629,-176.90419123,0.00021148,30]
[400360609,1767435043640,-3000.0,0.0002115,2]
[400360610,1767435043650,-3000.0,0.0002116,2]
[400360611,1767435043659,-176.90419123,0.00021167,30]
[400360612,1767435043669,-3000.0,0.0002117,2]
[400360613,1767435043678,-3000.0,0.0002118,2]
[400360614,1767435043688,-176.90419123,0.00021187,30]
[400360615,1767435043698,-3000.0,0.0002119,2]
[400360616,1767435043708,-3000.0,0.000212,2]
[400360617,1767435043718,-176.90419123,0.00021207,30]
[400360618,1767435043727,-3000.0,0.0002121,2]
[400360619,1767435043737,-3000.0,0.0002122,2]
[400360620,1767435043747,-336.01796333,0.00021226,30]
[400360621,1767435043757,-3000.0,0.0002123,2]
[400360622,1767435043769,-3000.0,0.0002124,2]
[400360623,1767435043779,-1104.030292,0.0002124,2]
[400360624,1767435043788,-1104.030292,0.0002124,2]
[400360625,1767435043799,-1104.030292,0.0002124,2]
[400360626,1767435043808,-1104.030292,0.0002124,2]
[400360627,1767435043818,-3000.0,0.0002125,2]
[400360628,1767435043828,-151.0,0.0002125,2]
[400360629,1767435043841,-151.0,0.0002125,2]
[400360630,1767435043850,-151.0,0.0002125,2]
[400360631,1767435043860,-153.207208,0.0002125,2]
[400360632,1767435043869,-3000.0,0.0002126,2]
[400360633,1767435043879,-3000.0,0.0002127,2]
[400360634,1767435043889,-3000.0,0.0002128,2]
[400360635,1767435043899,-3000.0,0.0002129,2]
[400360636,1767435043908,-3000.0,0.000213,2]
[400360637,1767435043918,-44933.71,0.000213,2]
[400360638,1767435043927,-3000.0,0.0002131,2]
[400360639,1767435043937,-200.0,0.00021315,4]
[400360640,1767435043947,-3000.0,0.0002132,2]
[400360641,1767435043956,-3000.0,0.0002133,2]
[400360642,1767435043966,-3000.0,0.0002134,2]
[400360643,1767435043975,-3000.0,0.0002135,2]
[400360644,1767435043984,-3000.0,0.0002136,2]
[400360645,1767435043993,-3000.0,0.0002137,2]
[400360646,1767435044005,-3000.0,0.0002138,2]
[400360647,1767435044015,-3000.0,0.0002139,2]
[400360648,1767435044024,-3000.0,0.000214,2]
[400360649,1767435044034,-208.26,0.000214,2]
[400360650,1767435044044,-3000.0,0.0002141,2]
[400360651,1767435044053,-3000.0,0.0002142,2]
[400360652,1767435044063,-5330.544625,0.0002143,2]
[400360653,1767435044072,-1038.36333157,0.000215,2]
[400360654,1767435044082,-2556.40397572,0.000215,2]
[400360655,1767435044091,-2000.0,0.000215,7]
[400360656,1767435044101,-152.42,0.00021607,2]
[400360657,1767435044110,-282.15,0.000217,2]
[400360658,1767435044119,-3016.84,0.000217,2]
[400360659,1767435044129,-250.16,0.000217,2]
[400360660,1767435044139,-208.26,0.000217,2]
[400360661,1767435044149,-416.0,0.00021729,2]
[400360662,1767435044159,-1900.0,0.00021907,2]
[400360663,1767435044169,-462.094743,0.00021918,2]
[400360664,1767435044178,-1501.1993441,0.00021918,7]
[400360665,1767435044188,-500.0,0.00021919,2]
[400360666,1767435044198,-1900.0,0.00021956,2]
[400360667,1767435044207,-1900.0,0.00021972,2]
[400360668,1767435044217,-1438.89203543,0.00022,2]
[400360669,1767435044412,-311.65185859,0.00022,2]
[400360670,1767435044427,-5662.08556657,0.00022,2]
[400360671,1767435044439,-1416.32791025,0.00022,2]
[400360672,1767435044960,-2404.06790732,0.00016438,2]
[400360673,1767435045078,-3e-08,0.00016438,2]
[400360674,1767435045094,-1750.69521745,0.00016438,2]
[400360675,1767435045104,-815.38100031,0.00016438,2]
[400360678,1767435046300,638.22412083,0.00012977,2]
[400360679,1767435046577,-178.0,0.00016075,2]
[400360680,1767435046587,-3339.38212449,0.00016438,2]
[400360681,1767435046597,-1482.61787551,0.00016438,2]
[400360682,1767435049699,500.0,0.00012977,2]
[400360683,1767435049821,345.20787912,0.00012977,2]
[400360684,1767435050065,500.0,0.00012977,2]
[400360685,1767435067612,248.18165556,0.00012978,2]
[400360686,1767435072897,591.07,0.000126,2]
[400360687,1767435110612,-3147.71589153,0.000129,2]
[400360688,1767435116071,152.88,0.00012603,2]
[400360689,1767435158105,-215.91,0.000129,2]
[400360690,1767435190439,-300.0,0.00012977,2]
[400360691,1767435190468,-300.0,0.00012977,2]
[400360692,1767435196001,1200.0,0.00012977,2]
[400360693,1767435203082,582.31,0.000126,2]
[400360694,1767435242895,300.0,0.00012977,2]
[400360695,1767435252808,533.5029129,0.0001256,2]
[400360696,1767435259120,164.74,0.00012283,2]
[400360697,1767435259644,188.27,0.00012738,2]
[400360698,1767435301859,300.0,0.00012977,2]
[400360699,1767435302046,300.0,0.00012977,2]
[400360700,1767435302193,300.0,0.00012977,2]
[400360701,1767435302421,300.0,0.00012977,2]
[400360702,1767435329001,152.33,0.00012727,2]
[400360703,1767435331099,399.60012951,0.00012977,2]
[400360704,1767435331182,500.0,0.00012977,2]
[400360705,1767435357441,500.0,0.00012977,2]
[400360706,1767435357476,500.0,0.00012977,2]
[400360707,1767435357507,500.0,0.00012977,2]
[400360708,1767435357538,500.0,0.00012977,2]
[400360709,1767435357657,500.0,0.00012977,2]
[400360710,1767435357689,562.96329323,0.00012977,2]
[400360711,1767435357917,500.0,0.00012977,2]
[400360712,1767435358164,16.29366436,0.00012977,2]
[400360713,1767435358190,483.70633564,0.00012977,2]
[400360714,1767435358231,500.0,0.00012977,2]
[400360715,1767435358296,500.0,0.00012977,2]
[400360716,1767435363017,300.0,0.00012977,2]
[400360717,1767435444981,-1128.99157784,0.00012978,2]
[400360718,1767435446770,-208.39137968,0.00012978,2]
[400360719,1767435448966,-272.25525718,0.00012978,2]
[400360720,1767435450432,-364.56012056,0.00012978,2]
[400360721,1767435459957,-300.0,0.00012978,2]
[400360722,1767435460597,1726.01509954,0.00012978,2]
[400360723,1767435462120,-235.62681107,0.00012978,2]
[400360724,1767435463739,-162.47073191,0.00012978,2]
[400360725,1767435466569,-251.19992171,0.00012978,2]
[400360726,1767435470201,-314.16268127,0.00012978,2]
[400360727,1767435472758,-209.5161984,0.00012978,2]
[400360728,1767435479208,2754.25140508,0.00012936,2]
[400360729,1767435484723,1472.97634436,0.00012978,2]
[400360730,1767435519982,-159.19534197,0.00012978,2]
[400360731,1767435521610,-268.6369438,0.00012978,2]
[400360732,1767435532714,427.83228577,0.00012978,2]
[400360733,1767435604463,604.0,0.00012978,2]
[400360734,1767435664572,1231.22852961,0.00012936,2]
[400360735,1767435664596,1178.74144987,0.00012936,2]
[400360736,1767435743059,220.18,0.000126,2]
[400360737,1767435803819,575.07,0.000126,2]
[400360738,1767435863594,227.28,0.000126,2]
[400360739,1767435922738,568.11,0.000126,2]
[400360740,1767435982796,234.1,0.000126,2]
[400360741,1767436042412,561.43,0.000126,2]
[400360742,1767436076158,-268.1597608,0.00012771,2]
[400360743,1767436082765,-3.58698231,0.00012771,2]
[400360744,1767436083823,-188.32954994,0.000129,2]
[400360745,1767436086300,-240.44569934,0.00012878,2]
[400360746,1767436086744,2038.41881497,0.00028767,120]
[400360747,1767436089012,-287.30063231,0.00012878,2]
[400360748,1767436091549,-315.35540128,0.00012878,2]
[400360749,1767436094405,519.84589934,0.00012771,2]
[400360750,1767436094724,-238.88394758,0.00012878,2]
[400360751,1767436099614,-300.98719936,0.00012878,2]
[400360752,1767436101849,-353.27021086,0.00012878,2]
[400360753,1767436102295,240.64,0.000126,2]
[400360754,1767436106108,-175.26288979,0.00012878,2]
[400360755,1767436109732,-197.23411541,0.00012878,2]
[400360758,1767436111236,-228.2771496,0.00012878,2]
[400360759,1767436112846,500.0,0.00012877,2]
[400360760,1767436112885,629.72009066,0.00012877,2]
[400360761,1767436112918,500.0,0.00012877,2]
[400360762,1767436112971,494.07430526,0.00012877,2]
[400360763,1767436113086,500.0,0.00012877,2]
[400360764,1767436113605,500.0,0.00012877,2]
[400360765,1767436113737,500.0,0.00012877,2]
[400360766,1767436113799,-311.46308135,0.00012878,2]
[400360767,1767436114000,500.0,0.00012877,2]
[400360768,1767436114090,500.0,0.00012877,2]
[400360769,1767436114676,565.22940667,0.00012877,2]
[400360770,1767436114743,500.0,0.00012877,2]
[400360771,1767436115102,-172.02805785,0.00012878,2]
[400360772,1767436118414,4070.34619741,0.0001,2]
[400360773,1767436118442,10000.01,0.0001,2]
[400360774,1767436118469,3990.66742154,0.0001,2]
[400360775,1767436119274,-300.0,0.00012878,2]
[400360776,1767436124232,-191.61728058,0.00012878,2]
[400360777,1767436126530,4850.25933329,0.00012878,2]
[400360778,1767436126902,-319.49131589,0.00012878,2]
[400360779,1767436130237,-173.67069067,0.00012878,2]
[400360780,1767436135098,-281.21732008,0.00012878,2]
[400360781,1767436138262,-170.41,0.00012878,2]
[400360782,1767436141001,-193.58627689,0.00012878,2]
[400360785,1767436142321,300.0,0.00012877,2]
[400360786,1767436143284,-200.92147566,0.00012878,2]
[400360787,1767436143351,205.10608061,0.00012878,2]
[400360788,1767436145262,-177.7,0.00012878,2]
[400360789,1767436149585,163.57,0.00012876,2]
[400360790,1767436150043,-166.68,0.00012878,2]
[400360791,1767436151543,490.40716456,0.00012878,2]
[400360792,1767436151569,4509.59283544,0.00012878,2]
[400360793,1767436153290,-469.2319826,0.00012878,2]
[400360799,1767436155643,-151.59812463,0.00012878,2]
[400360800,1767436157925,-170.14,0.00012878,2]
[400360801,1767436176413,4469.68192765,0.00012878,2]
[400360802,1767436200459,1020.73523691,0.00012878,2]
[400360803,1767436200496,3979.26476309,0.00012878,2]
[400360804,1767436202326,300.0,0.00012877,2]
[400360805,1767436203026,503.0,0.00012877,2]
[400360806,1767436208411,602.0,0.00012878,2]
[400360807,1767436215556,612.48370762,0.00012877,2]
[400360808,1767436217018,528.82550863,0.00012878,2]
[400360809,1767436219483,154.56,0.00011632,2]
[400360810,1767436219894,193.2,0.00012116,2]
[400360811,1767436220375,231.84,0.00012601,2]
[400360845,1767436232533,-506.00048831,0.00012877,2]
[400360847,1767436232544,-500.0,0.00012877,2]
[400360849,1767436232553,-199.90580407,0.00012877,2]
[400360851,1767436232564,-170652.70849018,0.00012878,2]
[400360853,1767436232575,-1371.92452659,0.00012878,2]
[400360855,1767436232588,-350000.0,0.00012878,2]
[400360867,1767436238638,-724.46984263,0.00012878,2]
[400360868,1767436238671,-1275.53015737,0.00012878,2]
[400360869,1767436238821,-470188.5941315,0.00012878,2]
[400360870,1767436238831,-635.39,0.000129,2]
[400360871,1767436238842,-240.00397434,0.00012977,2]
[400360872,1767436238852,-288.95763752,0.00012989,2]
[400360873,1767436238863,-270.48,0.00013086,2]
[400360874,1767436238874,-635.39,0.000132,2]
[400360875,1767436238884,-600.0,0.00013237,2]
[400360876,1767436238894,-500.0,0.00013273,2]
[400360877,1767436238903,-500.0,0.00013273,2]
[400360878,1767436238913,-500.0,0.00013273,2]
[400360879,1767436238923,-50000.0,0.000133,2]
[400360880,1767436238932,-635.39,0.000135,2]
[400360881,1767436238942,-309.12,0.0001357,2]
[400360882,1767436238952,-300.0,0.00013673,2]
[400360883,1767436238962,-529.5136224,0.00013698,2]
[400360884,1767436238972,-500.0,0.00013698,2]
[400360885,1767436238982,-500.0,0.00013698,2]
[400360886,1767436238992,-500.0,0.00013698,2]
[400360887,1767436239002,-500.0,0.00013698,2]
[400360888,1767436239013,-500.0,0.00013698,2]
[400360889,1767436239024,-500.0,0.00013698,2]
[400360890,1767436239035,-500.0,0.00013698,2]
[400360891,1767436239045,-500.0,0.00013698,2]
[400360892,1767436239056,-500.0,0.00013698,2]
[400360893,1767436239068,-500.0,0.00013698,2]
[400360894,1767436239082,-500.0,0.00013698,2]
[400360895,1767436239094,-500.0,0.00013698,2]
[400360896,1767436239104,-500.0,0.00013698,2]
[400360897,1767436239119,-500.0,0.00013698,2]
[400360898,1767436239130,-1730.16,0.00013698,2]
[400360899,1767436239140,-1730.16,0.00013698,2]
[400360900,1767436239151,-1730.16,0.00013698,2]
[400360901,1767436239161,-1730.16,0.00013698,2]
[400360902,1767436239172,-1730.16,0.00013698,2]
[400360903,1767436239185,-1730.16,0.00013698,2]
[400360904,1767436239202,-1730.16,0.00013698,2]
[400360905,1767436239212,-1730.16,0.00013698,2]
[400360906,1767436239222,-1730.16,0.00013698,2]
[400360907,1767436239233,-1730.16,0.00013698,2]
[400360908,1767436239242,-1730.16,0.00013698,2]
[400360909,1767436239252,-1730.16,0.00013698,2]
[400360910,1767436239262,-1730.16,0.00013698,2]
[400360911,1767436239272,-1730.16,0.00013698,2]
[400360912,1767436239282,-1730.16,0.00013698,2]
[400360913,1767436239292,-1730.16,0.00013698,2]
[400360914,1767436239302,-1730.16,0.00013698,2]
[400360915,1767436239312,-1730.16,0.00013698,2]
[400360916,1767436239324,-1730.16,0.00013698,2]
[400360917,1767436239334,-1730.16,0.00013698,2]
[400360918,1767436239344,-1730.16,0.00013698,2]
[400360919,1767436239355,-1730.16,0.00013698,2]
[400360920,1767436239364,-1730.16,0.00013698,2]
[400360921,1767436239375,-1730.18390779,0.00013698,2]
[400360922,1767436239385,-180.00540016,0.00013699,2]
[400360923,1767436239395,-1384.5057019,0.00013699,2]
[400360924,1767436239405,-500.0,0.00013699,2]
[400360925,1767436239415,-500.0,0.00013699,2]
[400360926,1767436239438,-500.0,0.00013699,2]
[400360927,1767436239450,-501.0990515,0.00013699,2]
[400360928,1767436239461,-376.6159482,0.000137,2]
[400360929,1767436239472,-376.6159482,0.000137,2]
[400360930,1767436239483,-758.4320388,0.000137,2]
[400360931,1767436239494,-376.6159482,0.000138,2]
[400360932,1767436239504,-376.6159482,0.000138,2]
[400360933,1767436239514,-173.31490018,0.00013821,2]
[400360934,1767436239524,-1000.0,0.00013821,2]
[400360935,1767436239535,-582.21198243,0.00013821,2]
[400360936,1767436239546,-1041.66666667,0.00013851,2]
[400360937,1767436239557,-202.5750319,0.000139,2]
[400360938,1767436239567,-376.6159482,0.000139,2]
[400360939,1767436239578,-409.8183872,0.000139,2]
[400360940,1767436239590,-635.39,0.000139,2]
[400360941,1767436239602,-495.6543747,0.00013977,2]
[400360942,1767436239612,-347.76,0.00014055,2]
[400360943,1767436239623,-250.0,0.00014109,2]
[400360944,1767436239632,-250.0,0.00014109,2]
[400360945,1767436239642,-635.39,0.000142,2]
[400360946,1767436239652,-1000.0,0.00014247,2]
[400360947,1767436239663,-500.0,0.00014247,2]
[400360948,1767436239673,-1000.0,0.00014247,2]
[400360949,1767436239684,-269.09233947,0.00014368,2]
[400360950,1767436239694,-635.39,0.000145,2]
[400360951,1767436239704,-386.4,0.0001454,2]
[400360952,1767436239714,-720.0,0.0001456,2]
[400360953,1767436239724,-1500.0,0.00014795,2]
[400360954,1767436239734,-635.39,0.000148,2]
[400360955,1767436239744,-100000.0,0.00014882,2]
[400360956,1767436239755,-340.97001227,0.00014989,2]
[400360957,1767436239766,-1000.0,0.00015,2]
[400360958,1767436239777,-501.07960354,0.00015,2]
[400360959,1767436239787,-462.094743,0.00015068,2]
[400360960,1767436239798,-800.0,0.00015068,2]
[400360961,1767436239808,-314.28,0.000151,2]
[400360962,1767436239819,-635.39,0.000151,2]
[400360963,1767436239830,-2000.0,0.00015342,2]
[400360964,1767436239840,-635.39,0.000155,2]
[400360965,1767436239851,-1080.92186024,0.00015593,2]
[400360966,1767436239861,-635.39,0.000158,2]
[400360967,1767436239872,-2500.0,0.0001589,2]
[400360968,1767436239882,-864.0,0.00016016,2]
[400360969,1767436239893,-635.39,0.000161,2]
[400360970,1767436239903,-152.42,0.00016128,2]
[400360971,1767436239913,-1093.84384208,0.00016164,2]
[400360972,1767436239928,-16891.83577309,0.00016338,2]
[400360973,1767436239938,-635.39,0.000164,2]
[400360974,1767436239949,-500.0,0.00016411,2]
[400360975,1767436239960,-500.0,0.00016411,2]
[400360976,1767436240119,-500.0,0.00016411,2]
[400360977,1767436240141,-500.0,0.00016411,2]
[400360978,1767436240151,-500.0,0.00016411,2]
[400360979,1767436240161,-500.0,0.00016411,2]
[400360980,1767436240171,-500.0,0.00016411,2]
[400360981,1767436240181,-500.0,0.00016411,2]
[400360982,1767436240191,-500.0,0.00016411,2]
[400360983,1767436240202,-500.0,0.00016411,2]
[400360984,1767436240211,-500.0,0.00016411,2]
[400360985,1767436240221,-500.0,0.00016411,2]
[400360986,1767436240232,-500.0,0.00016411,2]
[400360987,1767436240242,-500.0,0.00016411,2]
[400360988,1767436240252,-500.0,0.00016411,2]
[400360989,1767436240262,-500.0,0.00016411,2]
[400360990,1767436240272,-484.05461293,0.00016411,2]
[400360991,1767436240282,-972.294013,0.00016438,2]
[400360992,1767436240292,-972.294013,0.00016438,2]
[400360993,1767436240303,-972.294013,0.00016438,2]
[400360994,1767436240312,-972.294013,0.00016438,2]
[400360995,1767436240322,-864.7,0.00016438,2]
[400360996,1767436240332,-7393.07106604,0.00016438,2]
[400360997,1767436240342,-7393.07106604,0.00016438,2]
[400360998,1767436240351,-7393.07106604,0.00016438,2]
[400360999,1767436240361,-7393.07106604,0.00016438,2]
[400361000,1767436240370,-7393.07106604,0.00016438,2]
[400361001,1767436240384,-7393.07106604,0.00016438,2]
[400361002,1767436240394,-7393.07106604,0.00016438,2]
[400361003,1767436240404,-7393.07106604,0.00016438,2]
[400361004,1767436240415,-7393.07106604,0.00016438,2]
[400361005,1767436240425,-7393.07106604,0.00016438,2]
[400361006,1767436240434,-7393.07106604,0.00016438,2]
[400361007,1767436240445,-7393.07106604,0.00016438,2]
[400361008,1767436240455,-7393.07106604,0.00016438,2]
[400361009,1767436240464,-7393.07106604,0.00016438,2]
[400361010,1767436240475,-7393.07106604,0.00016438,2]
[400361011,1767436240484,-7393.07106604,0.00016438,2]
[400361012,1767436240494,-7393.07106604,0.00016438,2]
[400361013,1767436240504,-7393.07106604,0.00016438,2]
[400361015,1767436240514,-7393.07106604,0.00016438,2]
[400361016,1767436240526,-7393.07106604,0.00016438,2]
[400361017,1767436240535,-7393.07106604,0.00016438,2]
[400361018,1767436240545,-7393.07106604,0.00016438,2]
[400361019,1767436240555,-7393.07106604,0.00016438,2]
[400361020,1767436240565,-7393.07106604,0.00016438,2]
[400361021,1767436240576,-7393.07106604,0.00016438,2]
[400361022,1767436240586,-7393.07106604,0.00016438,2]
[400361023,1767436240596,-7393.07106604,0.00016438,2]
[400361024,1767436240607,-7393.07106604,0.00016438,2]
[400361025,1767436240617,-7393.07106604,0.00016438,2]
[400361026,1767436240627,-7393.07106604,0.00016438,2]
[400361027,1767436240637,-7393.07106604,0.00016438,2]
[400361028,1767436240647,-7393.07106604,0.00016438,2]
[400361029,1767436240657,-7393.07106604,0.00016438,2]
[400361030,1767436240668,-7393.07106604,0.00016438,2]
[400361031,1767436240678,-7393.07106604,0.00016438,2]
[400361032,1767436240688,-7393.07106604,0.00016438,2]
[400361033,1767436240699,-7393.07106604,0.00016438,2]
[400361034,1767436240709,-7393.07106604,0.00016438,2]
[400361036,1767436240721,-7393.07106604,0.00016438,2]
[400361037,1767436240731,-7393.07106604,0.00016438,2]
[400361038,1767436240741,-7393.07106604,0.00016438,2]
[400361039,1767436240751,-7393.07106604,0.00016438,2]
[400361040,1767436240760,-7393.07106604,0.00016438,2]
[400361041,1767436240770,-7393.07106604,0.00016438,2]
[400361042,1767436240779,-7393.07106604,0.00016438,2]
[400361043,1767436240789,-7393.07106604,0.00016438,2]
[400361044,1767436240799,-7393.07106604,0.00016438,2]
[400361045,1767436240809,-7393.07106604,0.00016438,2]
[400361046,1767436240819,-7393.07106604,0.00016438,2]
[400361047,1767436240829,-7393.07106604,0.00016438,2]
[400361048,1767436240839,-7393.07106604,0.00016438,2]
[400361049,1767436240849,-7393.07106604,0.00016438,2]
[400361050,1767436240859,-7393.07106604,0.00016438,2]
[400361051,1767436240869,-7393.07106604,0.00016438,2]
[400361052,1767436240879,-7393.07106604,0.00016438,2]
[400361053,1767436240889,-7393.07106604,0.00016438,2]
[400361054,1767436240899,-7393.07106604,0.00016438,2]
[400361055,1767436240909,-7393.07106604,0.00016438,2]
[400361056,1767436240919,-7393.07106604,0.00016438,2]
[400361057,1767436240929,-7393.07106604,0.00016438,2]
[400361058,1767436240939,-7393.07106604,0.00016438,2]
[400361059,1767436240948,-7366.6672408,0.00016438,2]
[400361060,1767436240958,-7366.6672408,0.00016438,2]
[400361061,1767436240968,-7366.6672408,0.00016438,2]
[400361062,1767436240978,-7366.6672408,0.00016438,2]
[400361063,1767436240988,-7366.6672408,0.00016438,2]
[400361064,1767436240998,-7366.6672408,0.00016438,2]
[400361065,1767436241008,-7366.6672408,0.00016438,2]
[400361066,1767436241018,-7366.6672408,0.00016438,2]
[400361067,1767436241028,-7366.6672408,0.00016438,2]
[400361068,1767436241038,-7366.6672408,0.00016438,2]
[400361069,1767436241048,-7366.6672408,0.00016438,2]
[400361070,1767436241057,-7366.6672408,0.00016438,2]
[400361073,1767436241067,-7366.6672408,0.00016438,2]
[400361076,1767436241077,-7366.6672408,0.00016438,2]
[400361077,1767436241087,-7366.6672408,0.00016438,2]
[400361078,1767436241096,-7366.6672408,0.00016438,2]
[400361079,1767436241106,-7366.6672408,0.00016438,2]
[400361080,1767436241119,-7366.6672408,0.00016438,2]
[400361081,1767436241129,-7366.6672408,0.00016438,2]
[400361082,1767436241139,-7366.6672408,0.00016438,2]
[400361083,1767436241149,-7366.6672408,0.00016438,2]
[400361084,1767436241162,-7366.6672408,0.00016438,2]
[400361085,1767436241172,-7366.6672408,0.00016438,2]
[400361086,1767436241181,-7366.6672408,0.00016438,2]
[400361087,1767436241192,-7366.6672408,0.00016438,2]
[400361088,1767436241202,-7366.6672408,0.00016438,2]
[400361089,1767436241212,-7366.6672408,0.00016438,2]
[400361090,1767436241221,-7366.6672408,0.00016438,2]
[400361091,1767436241231,-151.0,0.00016438,2]
[400361092,1767436241241,-151.0,0.00016438,2]
[400361093,1767436241250,-154.76883189,0.00016438,2]
[400361094,1767436241260,-164.0102757,0.00016438,2]
[400361095,1767436241269,-151.0,0.00016438,2]